fUSD/lending_fUSD_20250112
["ID","MTS","AMOUNT","RATE_DAILY","PERIOD"]
[348621673,1736681444087,-1038.10045899,9.999e-05,3]
[348621674,1736681444096,-1038.10045899,9.999e-05,3]
[348621675,1736681444105,-1038.10045899,9.999e-05,3]
[348621676,1736681444115,-1038.10045899,9.999e-05,3]
[348621677,1736681444126,-1038.10045897,9.999e-05,3]
[348621678,1736681444135,-500.0,9.999e-05,2]
[348621679,1736681444145,-500.0,9.999e-05,2]
[348621680,1736681444154,-500.0,9.999e-05,2]
[348621681,1736681444163,-500.0,9.999e-05,2]
[348621682,1736681444172,-340.71,9.999e-05,2]
[348621683,1736681444182,-500.0,9.999e-05,2]
[348621684,1736681444191,-500.0,9.999e-05,2]
[348621685,1736681444201,-500.0,9.999e-05,2]
[348621686,1736681444211,-500.0,9.999e-05,2]
[348621687,1736681444221,-500.0,9.999e-05,2]
[348621688,1736681444231,-500.0,9.999e-05,2]
[348621689,1736681444240,-231.31198979,9.999e-05,2]
[348621690,1736681444249,-500.0,9.999e-05,2]
[348621691,1736681444258,-500.0,9.999e-05,2]
[348621692,1736681444268,-500.0,9.999e-05,2]
[348621693,1736681444277,-145.61906365,9.999e-05,2]
[348621694,1736681444290,-354.38093635,9.999e-05,2]
[348621695,1736681444299,-500.0,9.999e-05,2]
[348621696,1736681444308,-500.0,9.999e-05,2]
[348621697,1736681444318,-500.0,9.999e-05,2]
[348621698,1736681444327,-60.26605266,9.999e-05,2]
[348621699,1736681444353,-439.73394734,9.999e-05,2]
[348621700,1736681444362,-500.0,9.999e-05,2]
[348621701,1736681444371,-500.0,9.999e-05,2]
[348621702,1736681444380,-500.0,9.999e-05,2]
[348621703,1736681444390,-60.26605266,9.999e-05,2]
[348621707,1736681445750,-335.86016,9.983e-05,2]
[348621708,1736681445763,-183.14984,9.983e-05,2]
[348621709,1736681445773,-500.0,9.984e-05,2]
[348621710,1736681445782,-298.9695604,9.984e-05,2]
[348621719,1736681860904,878.85080953,0.00023,120]
[348621721,1736682235155,1083.09,8.219e-05,2]
[348621734,1736682631836,-150.0,9e-05,2]
[348621735,1736682631847,-186.45787987,9e-05,2]
[348621736,1736682631857,-150.0,9e-05,2]
[348621737,1736682631866,-250.0,9.119e-05,2]
[348621738,1736682631875,-314.19,9.145e-05,2]
[348621739,1736682631884,-169.47,9.175e-05,2]
[348621740,1736682631895,-217.88964292,9.178e-05,2]
[348621742,1736682637717,-106.26035708,9.178e-05,2]
[348621743,1736682637728,-836.44964292,9.179e-05,2]
[348621751,1736682639752,-163.55035708,9.179e-05,2]
[348621752,1736682639762,-342.59,9.187e-05,2]
[348621753,1736682639773,-150.0,9.945e-05,2]
[348621754,1736682639782,-151.85407727,9.973e-05,2]
[348621755,1736682639791,-500.0,9.973e-05,2]
[348621756,1736682639801,-300.0,9.978e-05,2]
[348621757,1736682639811,-1665.8,9.979e-05,2]
[348621758,1736682639821,-500.0,9.979e-05,2]
[348621759,1736682639831,-58.02085654,9.979e-05,2]
[348621760,1736682640046,-500.0,9.979e-05,2]
[348621773,1736682642826,-416.41914346,9.979e-05,2]
[348621774,1736682642836,-589.48369696,9.979e-05,2]
[348621775,1736682642848,-1792.75630304,9.979e-05,2]
[348621776,1736682642857,-983.6,9.979e-05,2]
[348621777,1736682642867,-894.93,9.979e-05,2]
[348621778,1736682642876,-826.3,9.979e-05,2]
[348621779,1736682642886,-500.0,9.979e-05,2]
[348621780,1736682642897,-1136.2,9.979e-05,2]
[348621781,1736682642906,-606.41,9.979e-05,2]
[348621782,1736682642915,-1226.3,9.979e-05,2]
[348621783,1736682642924,-948.89410198,9.979e-05,2]
[348621784,1736682642961,-717.98917048,9.979e-05,2]
[348621821,1736682645724,-21.45672754,9.979e-05,2]
[348621822,1736682645735,-246.61069231,9.979e-05,2]
[348621823,1736682645746,-459.76271072,9.979e-05,2]
[348621824,1736682645785,-139.20659697,9.979e-05,2]
[348621825,1736682645794,-2564.22,9.979e-05,2]
[348621826,1736682645804,-248.20202162,9.979e-05,2]
[348622914,1736682728087,2045.94125612,0.00023,120]
[348622920,1736683336396,1070.03,8.219e-05,2]
[348622927,1736683471807,926.00005,0.00023,120]
[348622940,1736683831864,-984.80791181,8.789e-05,2]
[348622941,1736683832017,-515.19208819,8.789e-05,2]
[348622942,1736683832027,-23890.0,8.79e-05,2]
[348622943,1736683832036,-250.0,8.791e-05,2]
[348622944,1736683832045,-1000.0,8.804e-05,2]
[348622945,1736683832055,-200.0,8.831e-05,2]
[348622946,1736683832065,-500.0,8.967e-05,2]
[348622947,1736683832075,-215.84,8.982e-05,2]
[348622948,1736683832085,-150.0,9e-05,2]
[348622949,1736683832095,-150.0,9e-05,2]
[348622950,1736683832105,-150.0,9e-05,2]
[348622951,1736683832114,-150.0,9e-05,2]
[348622952,1736683832123,-250.0,9e-05,2]
[348622953,1736683832132,-251.47,9.035e-05,2]
[348622954,1736683832141,-161.95,9.038e-05,2]
[348622955,1736683832151,-250.0,9.046e-05,2]
[348622956,1736683832160,-417.33,9.056e-05,2]
[348622957,1736683832169,-1640.34187459,9.084e-05,2]
[348622958,1736683832181,-77.08812541,9.084e-05,2]
[348622959,1736683832190,-165.36,9.173e-05,2]
[348622960,1736683832199,-150.0,9.721e-05,2]
[348622961,1736683832208,-150.0,9.727e-05,2]
[348622962,1736683832217,-150.0,9.728e-05,2]
[348622969,1736683832227,-150.0,9.738e-05,2]
[348622973,1736683832422,-150.0,9.742e-05,2]
[348622975,1736683832432,-150.0,9.753e-05,2]
[348622977,1736683832441,-150.0,9.76e-05,2]
[348622979,1736683832450,-150.0,9.766e-05,2]
[348622981,1736683832460,-150.0,9.769e-05,2]
[348622983,1736683832469,-150.0,9.773e-05,2]
[348622985,1736683832478,-150.0,9.773e-05,2]
[348622986,1736683832487,-150.0,9.777e-05,2]
[348622988,1736683832497,-150.0,9.781e-05,2]
[348622990,1736683832507,-150.0,9.782e-05,2]
[348622992,1736683832518,-150.0,9.789e-05,2]
[348622994,1736683832528,-150.0,9.792e-05,2]
[348622996,1736683832537,-150.0,9.797e-05,2]
[348622998,1736683832546,-150.0,9.804e-05,2]
[348623000,1736683832555,-150.0,9.81e-05,2]
[348623002,1736683832565,-150.0,9.81e-05,2]
[348623004,1736683832574,-150.0,9.813e-05,2]
[348623006,1736683832584,-300.0,9.823e-05,2]
[348623008,1736683832594,-150.0,9.831e-05,2]
[348623010,1736683832603,-150.0,9.833e-05,2]
[348623012,1736683832612,-150.0,9.835e-05,2]
[348623014,1736683832622,-1500.0,9.836e-05,2]
[348623016,1736683832631,-150.0,9.841e-05,2]
[348623017,1736683832640,-150.0,9.842e-05,2]
[348623018,1736683832649,-150.0,9.852e-05,2]
[348623019,1736683832659,-150.0,9.861e-05,2]
[348623020,1736683832668,-150.0,9.862e-05,2]
[348623021,1736683832677,-150.0,9.87e-05,2]
[348623022,1736683832686,-150.0,9.874e-05,2]
[348623023,1736683832696,-86.43706684,9.877e-05,2]
[348623024,1736683832707,-63.56293316,9.877e-05,2]
[348623025,1736683832717,-888.514,9.88e-05,2]
[348623026,1736683832726,-150.0,9.884e-05,2]
[348623027,1736683832736,-8.45005459,9.9e-05,2]
[348623028,1736683832851,-300.999999,9.9e-05,2]
[348623029,1736683832862,-1500.00005,9.9e-05,2]
[348623041,1736683838227,-4042.16836142,9.9e-05,2]
[348623044,1736683838242,-647.30140143,9.9e-05,2]
[348623047,1736683838256,-1100.12668115,9.9e-05,2]
[348623049,1736683838272,-45875.25589379,9.9e-05,2]
[348623052,1736683838285,-1000.0,9.905e-05,2]
[348623054,1736683838295,-150.0,9.908e-05,2]
[348623056,1736683838304,-501.58268523,9.908e-05,2]
[348623058,1736683838314,-150.0,9.912e-05,2]
[348623060,1736683838323,-150.0,9.913e-05,2]
[348623062,1736683838332,-150.0,9.914e-05,2]
[348623064,1736683838342,-150.0,9.915e-05,2]
[348623066,1736683838351,-150.0,9.929e-05,2]
[348623068,1736683838363,-150.0,9.931e-05,2]
[348623070,1736683838372,-150.0,9.936e-05,2]
[348623072,1736683838381,-150.0,9.946e-05,2]
[348623094,1736683838686,-150.0,9.948e-05,2]
[348623095,1736683838713,-1511.4811445,9.951e-05,2]
[348623096,1736683838722,-150.0,9.953e-05,2]
[348623097,1736683838732,-150.0,9.956e-05,2]
[348623098,1736683838742,-150.0,9.966e-05,2]
[348623099,1736683838751,-511.04469238,9.973e-05,2]
[348623100,1736683838760,-152.85141006,9.973e-05,2]
[348623101,1736683838769,-150.0,9.975e-05,2]
[348623102,1736683838779,-848.58,9.979e-05,2]
[348623103,1736683838788,-2513.83,9.979e-05,2]
[348623104,1736683838797,-3691.97,9.979e-05,2]
[348623105,1736683838806,-2097.07,9.979e-05,2]
[348623106,1736683838815,-500.0,9.979e-05,2]
[348623107,1736683838824,-1421.09,9.979e-05,2]
[348623108,1736683838832,-3352.15,9.979e-05,2]
[348623109,1736683838842,-537.54,9.979e-05,2]
[348623110,1736683838852,-500.0,9.979e-05,2]
[348623111,1736683838861,-1223.59,9.979e-05,2]
[348623112,1736683838870,-500.0,9.979e-05,2]
[348623113,1736683838878,-818.21,9.979e-05,2]
[348623114,1736683838887,-670.99,9.979e-05,2]
[348623115,1736683838896,-1053.73,9.979e-05,2]
[348623116,1736683838906,-2112.9,9.979e-05,2]
[348623117,1736683838915,-500.0,9.979e-05,2]
[348623118,1736683838925,-667.3,9.979e-05,2]
[348623119,1736683838933,-500.0,9.98e-05,2]
[348623120,1736683838943,-500.82356974,9.98e-05,2]
[348623121,1736683838952,-500.0,9.98e-05,2]
[348623122,1736683838961,-502.24448428,9.98e-05,2]
[348623123,1736683838971,-500.0,9.98e-05,2]
[348623124,1736683838980,-500.52683284,9.98e-05,2]
[348623125,1736683838988,-500.0,9.98e-05,2]
[348623126,1736683838997,-500.0,9.98e-05,2]
[348623127,1736683839006,-500.0,9.98e-05,2]
[348623128,1736683839016,-500.0,9.98e-05,2]
[348623129,1736683839025,-202.99750716,9.98e-05,2]
[348623130,1736683839034,-500.0,9.98e-05,2]
[348623131,1736683839044,-500.0,9.98e-05,2]
[348623132,1736683839053,-395.60694277,9.98e-05,2]
[348623133,1736683839063,-500.0,9.98e-05,2]
[348623134,1736683839072,-500.0,9.98e-05,2]
[348623135,1736683839081,-500.0,9.98e-05,2]
[348623136,1736683839090,-500.0,9.98e-05,2]
[348623137,1736683839099,-284.50374291,9.98e-05,2]
[348623138,1736683839108,-500.0,9.98e-05,2]
[348623139,1736683839117,-500.0,9.98e-05,2]
[348623140,1736683839126,-500.0,9.98e-05,2]
[348623141,1736683839136,-500.80415625,9.98e-05,2]
[348623142,1736683839145,-385.77931664,9.98e-05,2]
[348623143,1736683839158,-115.61570252,9.98e-05,2]
[348623144,1736683839167,-500.0,9.98e-05,2]
[348623145,1736683839176,-789.22,9.98e-05,2]
[348623146,1736683839185,-111.3594192,9.98e-05,2]
[348623147,1736683839196,-388.6405808,9.98e-05,2]
[348623148,1736683839205,-500.0,9.98e-05,2]
[348623149,1736683839214,-501.83510129,9.98e-05,2]
[348623150,1736683839223,-500.0,9.98e-05,2]
[348623151,1736683839232,-500.0,9.98e-05,2]
[348623152,1736683839242,-500.0,9.98e-05,2]
[348623153,1736683839251,-500.0,9.98e-05,2]
[348623154,1736683839260,-500.0,9.98e-05,2]
[348623155,1736683839269,-500.0,9.98e-05,2]
[348623156,1736683839279,-500.46628391,9.98e-05,2]
[348623157,1736683839288,-500.0,9.98e-05,2]
[348623158,1736683839297,-500.0,9.98e-05,2]
[348623159,1736683839306,-500.0,9.98e-05,2]
[348623160,1736683839316,-462.13084686,9.98e-05,2]
[348623161,1736683839328,-37.86915314,9.98e-05,2]
[348623162,1736683839337,-436.29084687,9.98e-05,2]
[348623163,1736683839380,-63.70915313,9.98e-05,2]
[348623164,1736683839389,-322.16322814,9.98e-05,2]
[348623165,1736683839401,-177.83677186,9.98e-05,2]
[348623166,1736683839411,-355.66322814,9.98e-05,2]
[348623170,1736683840055,-144.33677186,9.98e-05,2]
[348623171,1736683840065,-186.18530721,9.98e-05,2]
[348623172,1736683840076,-313.81469279,9.98e-05,2]
[348623173,1736683840085,-186.18530721,9.98e-05,2]
[348623174,1736683840217,-313.81469279,9.98e-05,2]
[348623175,1736683840227,-500.0,9.98e-05,2]
[348623176,1736683840237,-500.0,9.98e-05,2]
[348623177,1736683840247,-500.0,9.98e-05,2]
[348623178,1736683840256,-500.0,9.98e-05,2]
[348623179,1736683840265,-443.43387341,9.98e-05,2]
[348623451,1736683842891,-60.89481206,9.98e-05,2]
[348623453,1736683842900,-500.0,9.98e-05,2]
[348623455,1736683842909,-500.77558763,9.98e-05,2]
[348623457,1736683842918,-500.47445346,9.98e-05,2]
[348623459,1736683842928,-105.87811793,9.98e-05,2]
[348623461,1736683842939,-804.39188207,9.98e-05,2]
[348623463,1736683842948,-188.73547834,9.98e-05,2]
[348623479,1736683843097,-311.26452166,9.98e-05,2]
[348623481,1736683843106,-500.51472532,9.98e-05,2]
[348623483,1736683843115,-838.28,9.98e-05,2]
[348623485,1736683843124,-500.0,9.98e-05,2]
[348623487,1736683843133,-500.0,9.98e-05,2]
[348623489,1736683843143,-500.0,9.98e-05,2]
[348623491,1736683843152,-504.87,9.98e-05,2]
[348623492,1736683843162,-500.0,9.98e-05,2]
[348623494,1736683843171,-500.0,9.98e-05,2]
[348623495,1736683843180,-966.78,9.98e-05,2]
[348623497,1736683843190,-500.0,9.98e-05,2]
[348623498,1736683843199,-500.19188765,9.98e-05,2]
[348623499,1736683843209,-500.0,9.98e-05,2]
[348623500,1736683843218,-500.0,9.98e-05,2]
[348623501,1736683843227,-500.0,9.98e-05,2]
[348623502,1736683843236,-328.29475143,9.98e-05,2]
[348623503,1736683843246,-500.0,9.98e-05,2]
[348623504,1736683843255,-501.0947912,9.98e-05,2]
[348623505,1736683843264,-500.0,9.98e-05,2]
[348623506,1736683843273,-500.0,9.98e-05,2]
[348623507,1736683843282,-501.29720124,9.98e-05,2]
[348623508,1736683843291,-500.0,9.98e-05,2]
[348623509,1736683843300,-500.0,9.98e-05,2]
[348623510,1736683843309,-500.0,9.98e-05,2]
[348623511,1736683843318,-500.0,9.98e-05,2]
[348623512,1736683843327,-500.0,9.98e-05,2]
[348623513,1736683843337,-357.97564183,9.98e-05,2]
[348623514,1736683843346,-475.35861628,9.98e-05,2]
[348623515,1736683843359,-24.64138372,9.98e-05,2]
[348623516,1736683843370,-500.0,9.98e-05,2]
[348623517,1736683843379,-510.10258015,9.98e-05,2]
[348623518,1736683843389,-80.50603738,9.98e-05,2]
[348623519,1736683843401,-419.49396262,9.98e-05,2]
[348623520,1736683843411,-500.0,9.98e-05,2]
[348623521,1736683843420,-500.0,9.98e-05,2]
[348623522,1736683843429,-266.96514489,9.98e-05,2]
[348623523,1736683843439,-536.64,9.98e-05,2]
[348623524,1736683843448,-500.0,9.98e-05,2]
[348623525,1736683843457,-500.0,9.98e-05,2]
[348623527,1736683843467,-500.0,9.98e-05,2]
[348623529,1736683843476,-500.0,9.98e-05,2]
[348623531,1736683843485,-500.0,9.98e-05,2]
[348623533,1736683843494,-545.84,9.98e-05,2]
[348623535,1736683843503,-355.38639119,9.98e-05,2]
[348623537,1736683843512,-500.0,9.98e-05,2]
[348623538,1736683843523,-500.0,9.98e-05,2]
[348623540,1736683843533,-500.0,9.98e-05,2]
[348623542,1736683843542,-500.0,9.98e-05,2]
[348623544,1736683843551,-502.27187946,9.98e-05,2]
[348623546,1736683843561,-502.82911089,9.98e-05,2]
[348623548,1736683843571,-751.7,9.98e-05,2]
[348623550,1736683843580,-500.23388212,9.98e-05,2]
[348623552,1736683843590,-500.0,9.98e-05,2]
[348623554,1736683843601,-501.465658,9.98e-05,2]
[348623557,1736683843610,-500.79492842,9.98e-05,2]
[348623558,1736683843619,-500.0,9.98e-05,2]
[348623560,1736683843629,-500.0,9.98e-05,2]
[348623562,1736683843638,-500.0,9.98e-05,2]
[348623564,1736683843648,-500.0,9.98e-05,2]
[348623566,1736683843657,-502.29169325,9.98e-05,2]
[348623568,1736683843666,-502.4297246,9.98e-05,2]
[348623570,1736683843675,-510.34220156,9.98e-05,2]
[348623572,1736683843685,-500.74766919,9.98e-05,2]
[348623574,1736683843694,-500.0,9.98e-05,2]
[348623576,1736683843704,-500.0,9.98e-05,2]
[348623578,1736683843713,-500.0,9.98e-05,2]
[348623580,1736683843723,-500.0,9.98e-05,2]
[348623582,1736683843732,-501.50953223,9.98e-05,2]
[348623584,1736683843741,-974.02,9.98e-05,2]
[348623586,1736683843751,-986.93,9.98e-05,2]
[348623588,1736683843760,-317.14101022,9.98e-05,2]
[348623590,1736683843769,-500.0,9.98e-05,2]
[348623592,1736683843779,-500.0,9.98e-05,2]
[348623594,1736683843790,-500.0,9.98e-05,2]
[348623596,1736683843799,-500.0,9.98e-05,2]
[348623599,1736683843810,-500.0,9.98e-05,2]
[348623600,1736683843819,-500.66294993,9.98e-05,2]
[348623603,1736683843829,-500.0,9.98e-05,2]
[348623605,1736683843839,-507.83,9.98e-05,2]
[348623607,1736683843848,-204.32532721,9.98e-05,2]
[348623609,1736683843857,-873.36,9.98e-05,2]
[348623611,1736683843867,-500.0,9.98e-05,2]
[348623613,1736683843876,-500.79181908,9.98e-05,2]
[348623615,1736683843886,-500.64733249,9.98e-05,2]
[348623617,1736683843895,-189.72468071,9.98e-05,2]
[348623618,1736683843903,-500.0,9.98e-05,2]
[348623621,1736683843913,-543.09,9.98e-05,2]
[348623623,1736683843924,-500.0,9.98e-05,2]
[348623625,1736683843933,-500.0,9.98e-05,2]
[348623644,1736683844112,-500.36529856,9.98e-05,2]
[348623646,1736683844122,-500.0,9.98e-05,2]
[348623648,1736683844132,-500.0,9.98e-05,2]
[348623650,1736683844141,-500.0,9.98e-05,2]
[348623652,1736683844151,-500.0,9.98e-05,2]
[348623654,1736683844160,-500.25810459,9.98e-05,2]
[348623656,1736683844169,-500.0,9.98e-05,2]
[348623658,1736683844179,-500.0,9.98e-05,2]
[348623660,1736683844188,-500.0,9.98e-05,2]
[348623662,1736683844198,-500.0,9.98e-05,2]
[348623665,1736683844208,-789.804144,9.98e-05,2]
[348623667,1736683844217,-500.0,9.98e-05,2]
[348623669,1736683844226,-500.0,9.98e-05,2]
[348623670,1736683844235,-500.0,9.98e-05,2]
[348623672,1736683844245,-500.0,9.98e-05,2]
[348623674,1736683844254,-500.0,9.98e-05,2]
[348623676,1736683844263,-500.0,9.98e-05,2]
[348623678,1736683844273,-158.155028,9.98e-05,2]
[348623680,1736683844282,-589.31,9.98e-05,2]
[348623683,1736683844292,-500.0,9.98e-05,2]
[348623685,1736683844302,-500.0,9.98e-05,2]
[348623687,1736683844312,-500.0,9.98e-05,2]
[348623688,1736683844321,-157.099566,9.98e-05,2]
[348623691,1736683844330,-500.0,9.98e-05,2]
[348623692,1736683844340,-556.44,9.98e-05,2]
[348623695,1736683844349,-500.0,9.98e-05,2]
[348623697,1736683844359,-549.45,9.98e-05,2]
[348623699,1736683844368,-500.0,9.98e-05,2]
[348623701,1736683844378,-1062.79,9.98e-05,2]
[348623703,1736683844387,-500.0,9.98e-05,2]
[348623704,1736683844396,-500.0,9.98e-05,2]
[348623706,1736683844406,-500.0,9.98e-05,2]
[348623708,1736683844416,-500.0,9.98e-05,2]
[348623710,1736683844425,-500.0,9.98e-05,2]
[348623713,1736683844436,-500.0,9.98e-05,2]
[348623715,1736683844445,-1585.92,9.98e-05,2]
[348623717,1736683844455,-500.0,9.98e-05,2]
[348623718,1736683844465,-593.916173,9.98e-05,2]
[348623720,1736683844474,-868.67,9.98e-05,2]
[348623723,1736683844483,-699.7,9.98e-05,2]
[348623725,1736683844493,-681.84,9.98e-05,2]
[348623726,1736683844502,-500.0,9.98e-05,2]
[348623729,1736683844512,-500.0,9.98e-05,2]
[348623730,1736683844523,-889.23,9.98e-05,2]
[348623733,1736683844533,-500.0,9.98e-05,2]
[348623735,1736683844543,-500.0,9.98e-05,2]
[348623737,1736683844552,-500.0,9.98e-05,2]
[348623739,1736683844566,-500.0,9.98e-05,2]
[348623741,1736683844576,-500.0,9.98e-05,2]
[348623743,1736683844586,-500.0,9.98e-05,2]
[348623745,1736683844595,-500.0,9.98e-05,2]
[348623747,1736683844605,-500.0,9.98e-05,2]
[348623749,1736683844615,-500.0,9.98e-05,2]
[348623751,1736683844624,-500.0,9.98e-05,2]
[348623753,1736683844634,-500.0,9.98e-05,2]
[348623755,1736683844643,-1431.31,9.98e-05,2]
[348623758,1736683844655,-947.62,9.98e-05,2]
[348623759,1736683844664,-500.0,9.98e-05,2]
[348623761,1736683844673,-500.0,9.98e-05,2]
[348623763,1736683844683,-500.0,9.98e-05,2]
[348623766,1736683844693,-500.0,9.98e-05,2]
[348623768,1736683844703,-500.0,9.98e-05,2]
[348623770,1736683844712,-500.0,9.98e-05,2]
[348623772,1736683844721,-500.0,9.98e-05,2]
[348623774,1736683844731,-500.0,9.98e-05,2]
[348623776,1736683844740,-500.0,9.98e-05,2]
[348623778,1736683844750,-500.0,9.98e-05,2]
[348623780,1736683844760,-704.25,9.98e-05,2]
[348623782,1736683844769,-507.24094463,9.98e-05,2]
[348623784,1736683844779,-500.0,9.98e-05,2]
[348623786,1736683844788,-500.0,9.98e-05,2]
[348623788,1736683844798,-539.55,9.98e-05,2]
[348623790,1736683844807,-286.62885234,9.98e-05,2]
[348623792,1736683844816,-503.90950936,9.98e-05,2]
[348623794,1736683844825,-500.0,9.98e-05,2]
[348623796,1736683844834,-500.0,9.98e-05,2]
[348623798,1736683844844,-500.0,9.98e-05,2]
[348623800,1736683844853,-500.0,9.98e-05,2]
[348623802,1736683844862,-500.0,9.98e-05,2]
[348623804,1736683844872,-1064.38,9.98e-05,2]
[348623806,1736683844881,-502.63762665,9.98e-05,2]
[348623808,1736683844890,-501.34526512,9.98e-05,2]
[348623810,1736683844900,-500.0,9.98e-05,2]
[348623812,1736683844909,-500.0,9.98e-05,2]
[348623814,1736683844920,-500.0,9.98e-05,2]
[348623816,1736683844929,-502.75833254,9.98e-05,2]
[348623818,1736683844938,-976.92,9.98e-05,2]
[348623820,1736683844947,-500.0,9.98e-05,2]
[348623822,1736683844957,-500.0,9.98e-05,2]
[348623824,1736683844967,-501.32697143,9.98e-05,2]
[348623826,1736683844975,-500.0,9.98e-05,2]
[348623828,1736683844985,-500.0,9.98e-05,2]
[348623830,1736683844994,-500.0,9.98e-05,2]
[348623831,1736683845004,-502.89445788,9.98e-05,2]
[348623833,1736683845014,-501.97027542,9.98e-05,2]
[348623834,1736683845023,-993.89,9.98e-05,2]
[348623835,1736683845032,-500.0,9.98e-05,2]
[348623836,1736683845041,-579.17,9.98e-05,2]
[348623837,1736683845051,-505.42714639,9.98e-05,2]
[348623838,1736683845061,-501.80645419,9.98e-05,2]
[348623839,1736683845070,-500.0,9.98e-05,2]
[348623840,1736683845080,-500.0,9.98e-05,2]
[348623841,1736683845089,-503.75206027,9.98e-05,2]
[348623842,1736683845098,-500.0,9.98e-05,2]
[348623843,1736683845107,-500.0,9.98e-05,2]
[348623844,1736683845116,-1867.31,9.98e-05,2]
[348623845,1736683845126,-500.0,9.98e-05,2]
[348623846,1736683845135,-796.62,9.98e-05,2]
[348623847,1736683845145,-500.0,9.98e-05,2]
[348623848,1736683845154,-504.41438813,9.98e-05,2]
[348623849,1736683845164,-500.0,9.98e-05,2]
[348623850,1736683845174,-500.0,9.98e-05,2]
[348623851,1736683845183,-500.0,9.98e-05,2]
[348623852,1736683845193,-502.71911238,9.98e-05,2]
[348623853,1736683845202,-500.0,9.98e-05,2]
[348623854,1736683845212,-500.0,9.98e-05,2]
[348623855,1736683845221,-500.0,9.98e-05,2]
[348623856,1736683845231,-507.25545114,9.98e-05,2]
[348623857,1736683845241,-500.0,9.98e-05,2]
[348623858,1736683845251,-500.0,9.98e-05,2]
[348623859,1736683845261,-567.84,9.98e-05,2]
[348623860,1736683845270,-428.45835845,9.98e-05,2]
[348623861,1736683845280,-500.0,9.98e-05,2]
[348623862,1736683845289,-798.86,9.98e-05,2]
[348623863,1736683845299,-500.0,9.98e-05,2]
[348623864,1736683845309,-500.0,9.98e-05,2]
[348623865,1736683845318,-506.64006082,9.98e-05,2]
[348623866,1736683845327,-500.0,9.98e-05,2]
[348623867,1736683845337,-500.0,9.98e-05,2]
[348623868,1736683845346,-500.0,9.98e-05,2]
[348623869,1736683845355,-500.0,9.98e-05,2]
[348623870,1736683845366,-500.0,9.98e-05,2]
[348623871,1736683845376,-500.0,9.98e-05,2]
[348623872,1736683845386,-517.69,9.98e-05,2]
[348623873,1736683845395,-500.0,9.98e-05,2]
[348623874,1736683845404,-3265.33,9.98e-05,2]
[348623875,1736683845414,-500.0,9.98e-05,2]
[348623876,1736683845423,-500.0,9.98e-05,2]
[348623877,1736683845433,-500.0,9.98e-05,2]
[348623878,1736683845442,-500.90308069,9.98e-05,2]
[348623879,1736683845451,-1130.0,9.98e-05,2]
[348623880,1736683845463,-864.83,9.98e-05,2]
[348623881,1736683845473,-500.0,9.98e-05,2]
[348623882,1736683845483,-504.54990113,9.98e-05,2]
[348623883,1736683845493,-500.0,9.98e-05,2]
[348623884,1736683845502,-500.0,9.98e-05,2]
[348623885,1736683845514,-500.0,9.98e-05,2]
[348623886,1736683845526,-874.4,9.98e-05,2]
[348623887,1736683845535,-500.0,9.98e-05,2]
[348623888,1736683845546,-505.05693471,9.98e-05,2]
[348623889,1736683845556,-500.0,9.98e-05,2]
[348623890,1736683845568,-500.0,9.98e-05,2]
[348623891,1736683845578,-500.0,9.98e-05,2]
[348623892,1736683845588,-500.0,9.98e-05,2]
[348623893,1736683845597,-500.0,9.98e-05,2]
[348623894,1736683845606,-506.01226298,9.98e-05,2]
[348623895,1736683845619,-500.0,9.98e-05,2]
[348623896,1736683845629,-520.56,9.98e-05,2]
[348623897,1736683845638,-500.0,9.98e-05,2]
[348623898,1736683845650,-571.43,9.98e-05,2]
[348623899,1736683845659,-500.0,9.98e-05,2]
[348623900,1736683845669,-967.91,9.98e-05,2]
[348623901,1736683845678,-500.0,9.98e-05,2]
[348623902,1736683845689,-500.0,9.98e-05,2]
[348623903,1736683845699,-500.0,9.98e-05,2]
[348623904,1736683845710,-3216.77,9.98e-05,2]
[348623905,1736683845719,-500.0,9.98e-05,2]
[348623906,1736683845730,-500.0,9.98e-05,2]
[348623907,1736683845740,-500.0,9.98e-05,2]